bitfinex/quotes_SOLUSD_20230116
["timestamp","ask_amount","ask_price","bid_price","bid_amount"]
[1673899327254,20.0,23.651,23.629,17.0]
[1673899327473,20.0,23.651,23.629,38.46196354]
[1673899327679,20.0,23.651,23.63,41.46196354]
[1673899328112,20.0,23.652,23.631,21.46196354]
[1673899328421,20.0,23.651,23.632,20.0]
[1673899328739,20.0,23.651,23.633,17.0]
[1673899329882,40.0,23.652,23.633,17.0]
[1673899330303,20.0,23.651,23.633,17.0]
[1673899331031,43.89917094,23.688,23.633,17.0]
[1673899331032,109.6063,23.673,23.634,41.46196354]
[1673899331361,108.8084,23.656,23.636,25.70545653]
[1673899331559,108.8084,23.656,23.638,20.0]
[1673899331766,108.8084,23.656,23.639,20.0]
[1673899331993,109.6063,23.673,23.64,22.59308775]
[1673899332187,108.8084,23.665,23.642,4.83841244]
[1673899332401,108.8084,23.665,23.643,17.0]
[1673899332619,108.8084,23.665,23.644,20.0]
[1673899332824,108.8084,23.665,23.645,17.0]
[1673899333363,20.0,23.664,23.646,41.46196354]
[1673899333552,20.0,23.664,23.647,17.0]
[1673899333972,20.0,23.664,23.645,17.0]
[1673899334408,20.0,23.664,23.643,17.0]
[1673899334823,20.0,23.664,23.643,38.46196354]
[1673899335234,20.0,23.664,23.644,20.0]
[1673899335443,20.0,23.664,23.645,17.0]
[1673899335777,108.8084,23.665,23.646,20.0]
[1673899335979,108.8084,23.665,23.647,17.0]
[1673899336199,20.0,23.664,23.647,17.0]
[1673899336508,20.0,23.664,23.648,20.0]
[1673899336709,108.8084,23.665,23.649,17.0]
[1673899337462,20.0,23.664,23.649,17.0]
[1673899338830,20.0,23.664,23.624,20.0]
[1673899339045,20.0,23.664,23.644,20.0]
[1673899339985,108.8084,23.665,23.645,26.9687212]
[1673899340181,108.8084,23.665,23.647,20.0]
[1673899340390,108.8084,23.665,23.648,17.0]
[1673899340729,108.8084,23.665,23.648,38.46196354]
[1673899340913,108.8084,23.665,23.649,21.46196354]
[1673899341124,20.0,23.664,23.65,17.0]
[1673899341329,20.0,23.664,23.648,38.46196354]
[1673899341543,20.0,23.664,23.649,20.0]
[1673899341773,20.0,23.664,23.65,17.0]
[1673899342611,20.0,23.664,23.649,17.0]
[1673899343552,108.8084,23.665,23.649,17.0]
[1673899343760,108.8084,23.665,23.649,38.46196354]
[1673899343968,108.8084,23.665,23.649,68.89735141]
[1673899344181,109.6063,23.673,23.65,20.0]
[1673899344390,109.6063,23.673,23.651,17.0]
[1673899344597,74.8964055,23.657,23.653,20.0]
[1673899344814,59.7780055,23.657,23.654,37.0]
[1673899345021,109.6063,23.673,23.655,20.0]
[1673899345235,117.8081,23.677,23.656,37.0]
[1673899345430,117.8081,23.677,23.656,89.69425404]
[1673899345646,117.8081,23.677,23.657,20.0]
[1673899345974,117.8081,23.677,23.658,17.0]
[1673899346172,20.0,23.676,23.658,17.0]
[1673899346594,20.0,23.676,23.657,20.0]
[1673899347552,20.0,23.676,23.655,20.0]
[1673899347766,20.0,23.676,23.656,20.0]
[1673899348182,20.0,23.676,23.657,17.0]
[1673899348393,20.0,23.676,23.656,20.0]
[1673899348715,20.64177002,23.676,23.656,20.0]
[1673899349111,20.64177002,23.676,23.654,20.0]
[1673899349324,20.64177002,23.676,23.65,20.0]
[1673899349325,17.0,23.675,23.644,20.0]
[1673899349655,20.0,23.673,23.644,20.0]
[1673899349852,20.0,23.672,23.644,20.0]
[1673899350057,20.0,23.671,23.644,20.0]
[1673899350288,20.0,23.67,23.644,20.0]
[1673899350473,20.0,23.669,23.644,20.0]
[1673899350685,20.0,23.671,23.646,20.0]
[1673899350898,20.0,23.671,23.647,21.84226817]
[1673899351114,128.0732,23.673,23.648,24.1066954]
[1673899351326,128.0732,23.673,23.649,17.0]
[1673899351546,128.0732,23.673,23.65,20.0]
[1673899351754,108.0732,23.673,23.652,20.0]
[1673899351966,20.0,23.672,23.652,20.0]
[1673899352176,108.0732,23.673,23.652,20.0]
[1673899352373,108.0732,23.673,23.653,21.46196354]
[1673899352579,108.0732,23.673,23.654,20.0]
[1673899353016,108.0732,23.673,23.656,20.0]
[1673899353227,108.0732,23.673,23.657,37.0]
[1673899353545,108.0732,23.673,23.658,21.46196354]
[1673899353755,108.0732,23.673,23.659,17.0]
[1673899354887,20.0,23.672,23.659,38.46196354]
[1673899355116,108.0732,23.673,23.659,38.46196354]
[1673899356990,108.0732,23.673,23.66,21.46196354]
[1673899357214,108.0732,23.673,23.661,17.0]
[1673899358566,108.0732,23.673,23.662,20.0]
[1673899358787,108.0732,23.673,23.663,17.0]
[1673899359198,108.0732,23.673,23.664,20.0]
[1673899359404,108.0732,23.673,23.665,17.0]
[1673899359724,108.0732,23.673,23.666,20.0]
[1673899359936,108.0732,23.673,23.667,17.0]
[1673899360264,20.0,23.698,23.668,20.0]
[1673899360476,112.68,23.696,23.669,17.0]
[1673899360691,112.68,23.696,23.67,20.0]
[1673899360996,20.0,23.695,23.672,20.0]
[1673899361225,20.0,23.695,23.673,37.0]
[1673899361438,109.0356,23.711,23.674,9.11102053]
[1673899361653,109.0356,23.711,23.675,4.87369]
[1673899361964,109.0356,23.711,23.676,67.13069105]
[1673899362284,119.4773,23.738,23.676,67.13069105]
[1673899362285,20.0,23.737,23.678,4.83767535]
[1673899362477,129.0356,23.737,23.679,21.87286]
[1673899362686,19.47691516,23.735,23.681,4.55769762]
[1673899362899,8.42504838,23.724,23.682,21.87224]
[1673899363224,20.0,23.723,23.684,6.50412914]
[1673899363440,20.0,23.723,23.685,41.87163]
[1673899363652,20.0,23.723,23.686,8.94424736]
[1673899363854,20.0,23.721,23.688,24.98041579]
[1673899364055,20.0,23.72,23.69,6.08051766]
[1673899364386,20.0,23.72,23.691,77.70257829]
[1673899364596,20.0,23.722,23.692,24.8034287]
[1673899364788,20.0,23.722,23.693,37.0]
[1673899364789,11.05186678,23.719,23.693,37.0]
[1673899364994,20.0,23.718,23.691,40.69958829]
[1673899365223,20.0,23.717,23.691,40.69958829]
[1673899365430,4.8955,23.716,23.674,20.0]
[1673899365748,24.37241516,23.716,23.674,20.0]
[1673899366065,4.8955,23.716,23.675,25.72660766]
[1673899366258,20.0,23.722,23.676,4.87348]
[1673899366467,20.0,23.721,23.678,4.80675021]
[1673899366676,20.0,23.721,23.679,4.87286]
[1673899366908,394.3,23.723,23.681,5.96313535]
[1673899367099,394.3,23.723,23.682,21.87224]
[1673899367308,394.3,23.723,23.683,24.87204]
[1673899367523,394.3,23.723,23.684,26.42187933]
[1673899367728,394.3,23.723,23.687,4.91422426]
[1673899367944,114.618,23.733,23.689,4.7751957]
[1673899368148,114.618,23.733,23.69,4.8706]
[1673899368358,114.618,23.733,23.691,17.0]
[1673899368573,114.618,23.733,23.692,24.87019]
[1673899368785,114.618,23.733,23.694,24.47528259]
[1673899368993,114.618,23.733,23.695,4.86957]
[1673899369205,20.0,23.732,23.698,4.01057191]
[1673899369427,20.0,23.732,23.699,4.86875]
[1673899369619,20.0,23.724,23.696,20.0]
[1673899369828,20.0,23.732,23.697,5.04975176]
[1673899370039,20.0,23.732,23.698,4.86896]
[1673899371001,20.0,23.732,23.699,17.0]
[1673899371190,20.0,23.724,23.7,24.86854]
[1673899371839,20.0,23.724,23.702,20.0]
[1673899372164,20.0,23.732,23.703,20.0]
[1673899372686,20.0,23.724,23.704,17.0]
[1673899373103,20.0,23.724,23.705,20.0]
[1673899373634,20.0,23.732,23.705,20.0]
[1673899373843,20.0,23.724,23.699,20.0]
[1673899374038,20.0,23.724,23.7,20.0]
[1673899374667,20.0,23.724,23.697,20.0]
[1673899374876,20.0,23.724,23.698,20.0]
[1673899375086,20.0,23.732,23.699,6.47894256]
[1673899375292,20.0,23.732,23.701,20.0]
[1673899375519,20.0,23.732,23.701,27.04687459]
[1673899375842,20.0,23.724,23.703,20.0]
[1673899376050,20.0,23.732,23.704,17.0]
[1673899376368,114.618,23.733,23.705,40.0]
[1673899376891,20.0,23.732,23.707,20.0]
[1673899377081,20.0,23.732,23.708,37.0]
[1673899377294,20.0,23.732,23.708,59.26005636]
[1673899378152,20.0,23.732,23.708,42.26005636]
[1673899378368,20.0,23.732,23.705,4.86752]
[1673899378690,20.0,23.724,23.696,66.58702525]
[1673899379612,20.0,23.732,23.696,66.58702525]
[1673899379815,20.0,23.732,23.702,20.0]
[1673899380023,20.0,23.724,23.702,20.0]
[1673899381597,20.0,23.732,23.702,20.0]
[1673899381808,20.0,23.724,23.702,20.0]
[1673899382228,20.0,23.724,23.696,66.85847483]
[1673899382441,20.0,23.724,23.696,20.0]
[1673899382442,20.0,23.722,23.696,20.0]
[1673899382649,20.0,23.721,23.7,20.0]
[1673899382859,138.9604,23.721,23.7,20.0]
[1673899383090,118.9604,23.721,23.7,20.0]
[1673899383513,118.9604,23.721,23.7,24.69767957]
[1673899383958,118.9604,23.721,23.701,17.0]
[1673899384167,118.9604,23.721,23.703,20.0]
[1673899384366,118.9604,23.721,23.704,37.0]
[1673899384782,118.9604,23.721,23.705,20.0]
[1673899384994,118.9604,23.721,23.707,20.0]
[1673899385409,118.9604,23.721,23.708,17.0]
[1673899386256,118.9604,23.721,23.707,17.0]
[1673899386479,118.9604,23.721,23.706,39.22678369]
[1673899386674,118.9604,23.721,23.703,20.0]
[1673899386886,118.9604,23.721,23.703,59.22678369]
[1673899387094,118.9604,23.721,23.705,20.0]
[1673899387424,118.9604,23.721,23.705,59.22678369]
[1673899387623,118.9604,23.721,23.705,63.64853707]
[1673899388044,118.9604,23.721,23.706,37.27999627]
[1673899388255,118.9604,23.721,23.708,20.0]
[1673899388577,118.9604,23.721,23.71,20.0]
[1673899388770,127.8,23.772,23.711,20.0]
[1673899388982,117.1812,23.735,23.712,4.48782306]
[1673899389317,117.1812,23.735,23.713,4.78784698]
[1673899389518,117.1812,23.735,23.714,4.60602595]
[1673899389730,117.1812,23.735,23.715,41.86546]
[1673899389944,20.0,23.75,23.715,79.14545627]
[1673899390269,117.1812,23.743,23.717,6.88919716]
[1673899390469,117.1812,23.743,23.718,17.0]
[1673899390804,117.1812,23.743,23.719,40.0]
[1673899391000,117.1812,23.743,23.72,17.0]
[1673899391189,20.0,23.742,23.722,4.01832285]
[1673899391523,115.7102,23.764,23.724,20.0]
[1673899391734,115.5766,23.758,23.726,6.5073219]
[1673899391923,115.7102,23.764,23.727,17.0]
[1673899392134,115.7102,23.764,23.729,7.65714112]
[1673899392345,115.5766,23.75,23.73,17.0]
[1673899392577,20.0,23.744,23.73,36.1195296]
[1673899392989,115.5766,23.75,23.73,34.35716293]
[1673899393302,20.0,23.744,23.725,20.0]
[1673899393504,20.0,23.744,23.722,20.0]
[1673899393720,20.0,23.744,23.722,26.69338946]
[1673899393919,20.0,23.744,23.723,6.09238352]
[1673899394128,20.0,23.744,23.724,20.0]
[1673899394467,20.0,23.744,23.725,20.0]
[1673899394779,115.5766,23.75,23.726,48.52688725]
[1673899394986,115.5766,23.75,23.727,24.863]
[1673899395194,115.5766,23.75,23.729,6.73854497]
[1673899395404,115.5766,23.75,23.73,21.86239]
[1673899395727,20.0,23.744,23.725,20.0]
[1673899396144,20.0,23.749,23.725,20.0]
[1673899396358,20.0,23.749,23.725,25.42330901]
[1673899396548,20.0,23.763,23.725,25.42330901]
[1673899396549,1.46351278,23.794,23.725,25.42330901]
[1673899396758,42.32,23.821,23.725,25.42330901]
[1673899396759,229.1545,23.803,23.752,7.38908728]
[1673899396962,229.1545,23.803,23.754,4.85748]
[1673899397287,229.1545,23.803,23.755,23.44067651]
[1673899397484,245.985775,23.803,23.756,10.66693077]
[1673899397700,245.985775,23.803,23.758,4.20402765]
[1673899397920,245.985775,23.803,23.757,41.85686]
[1673899397921,245.985775,23.803,23.76,4.67539181]
[1673899398137,20.0,23.802,23.761,12.60669079]
[1673899398458,20.0,23.802,23.763,5.88753031]
[1673899398770,20.0,23.802,23.764,37.0]
[1673899398962,20.0,23.802,23.765,4.75634618]
[1673899399175,20.0,23.802,23.767,4.38470878]
[1673899399383,20.0,23.802,23.768,17.0]
[1673899399607,20.0,23.802,23.768,38.46196354]
[1673899399810,20.0,23.802,23.769,26.5725233]
[1673899400009,245.985775,23.803,23.771,4.37179769]
[1673899400237,20.0,23.802,23.771,4.82067007]
[1673899400556,20.0,23.802,23.772,17.0]
[1673899400744,20.0,23.802,23.771,17.0]
[1673899400956,20.0,23.802,23.77,4.85421]
[1673899401171,20.0,23.802,23.764,20.0]
[1673899401389,20.0,23.8,23.749,5.78624949]
[1673899401604,20.0,23.8,23.752,7.35721653]
[1673899401605,20.0,23.799,23.752,7.35721653]
[1673899401796,20.0,23.799,23.753,4.85768]
[1673899402133,56.47691516,23.798,23.753,4.85768]
[1673899402331,20.0,23.797,23.753,4.85768]
[1673899402533,37.0,23.796,23.753,4.85768]
[1673899402742,20.0,23.795,23.753,4.85768]
[1673899402973,17.0,23.794,23.753,4.85768]
[1673899403168,20.0,23.793,23.753,4.85768]
[1673899403372,20.0,23.793,23.736,20.0]
[1673899403373,20.0,23.791,23.737,6.70235353]
[1673899403714,20.0,23.79,23.748,21.46196354]
[1673899404028,17.0,23.789,23.74,7.4362917]
[1673899404337,20.0,23.788,23.74,27.7912824]
[1673899404548,41.8955,23.787,23.741,20.0]
[1673899404870,20.0,23.786,23.742,33.44246101]
[1673899405066,20.0,23.784,23.744,20.0]
[1673899405263,20.0,23.783,23.745,4.3037828]
[1673899405473,20.0,23.787,23.746,4.85911]
[1673899406001,20.0,23.787,23.749,20.0]
[1673899406211,20.0,23.787,23.751,5.9807206]
[1673899406441,20.0,23.787,23.754,7.71363243]
[1673899406651,20.0,23.787,23.755,4.85727]
[1673899406874,20.0,23.787,23.756,21.07602428]
[1673899407075,20.0,23.795,23.757,24.85686]
[1673899407290,20.0,23.795,23.758,26.7798263]
[1673899407497,20.0,23.789,23.759,27.60052701]
[1673899407814,20.0,23.795,23.76,43.69882775]
[1673899408143,20.0,23.795,23.762,7.62737057]
[1673899408351,20.0,23.795,23.764,20.0]
[1673899408543,20.0,23.795,23.765,17.0]
[1673899408754,20.0,23.789,23.765,17.0]
[1673899409074,109.6235,23.803,23.767,27.08438577]
[1673899409414,108.2395,23.801,23.769,7.39595771]
[1673899409594,20.0,23.8,23.77,20.0]
[1673899409799,20.0,23.8,23.729,20.0]
[1673899410020,4.8955,23.799,23.742,5.56843658]
[1673899410327,20.0,23.798,23.745,7.86876102]
[1673899410539,4.8955,23.797,23.746,4.85911]
[1673899410863,20.0,23.795,23.746,4.85911]
[1673899411067,17.0,23.794,23.746,4.85911]
[1673899411377,24.8955,23.793,23.738,20.0]
[1673899411599,152.6955,23.792,23.73,6.53922835]
[1673899411812,127.8,23.79,23.73,6.53922835]
[1673899412016,24.8955,23.789,23.73,6.53922835]
[1673899412230,179.3165,23.788,23.731,33.37235329]
[1673899412444,4.8955,23.787,23.732,12.22954213]
[1673899412644,17.0,23.786,23.732,12.22954213]
[1673899412970,44.8955,23.785,23.734,7.69964415]
[1673899413183,20.0,23.784,23.735,4.86136]
[1673899413383,20.0,23.783,23.736,26.14530528]
[1673899413595,20.0,23.783,23.736,41.46196354]
[1673899413935,20.0,23.783,23.738,20.0]
[1673899414127,20.0,23.783,23.739,7.229864]
[1673899414454,20.0,23.783,23.741,19.78437]
[1673899414455,33.03691516,23.783,23.741,19.78437]
[1673899414635,20.0,23.782,23.742,17.0]
[1673899414842,20.0,23.781,23.742,16.78549]
[1673899415075,37.0,23.78,23.742,16.78549]
[1673899415285,20.0,23.779,23.742,16.78549]
[1673899415474,37.0,23.778,23.74,20.0]
[1673899415685,20.0,23.777,23.74,20.0]
[1673899415897,37.0,23.776,23.741,28.61417329]
[1673899416112,20.0,23.775,23.742,20.0]
[1673899416331,20.0,23.773,23.742,20.0]
[1673899416736,20.0,23.773,23.743,21.46196354]
[1673899416953,20.0,23.773,23.744,17.0]
[1673899417161,20.0,23.773,23.743,17.0]
[1673899417817,20.0,23.771,23.743,17.0]
[1673899418029,20.0,23.772,23.743,17.0]
[1673899418030,20.0,23.77,23.744,21.46196354]
[1673899418240,20.0,23.77,23.743,17.0]
[1673899418241,20.0,23.771,23.746,20.0]
[1673899418560,117.2337,23.774,23.747,17.0]
[1673899418768,117.2337,23.774,23.748,20.0]
[1673899418968,117.2337,23.774,23.749,17.0]
[1673899419175,117.2337,23.774,23.75,20.0]
[1673899419385,117.2337,23.774,23.751,37.0]
[1673899419591,117.2337,23.774,23.751,58.46196354]
[1673899419803,117.2337,23.774,23.752,20.0]
[1673899420030,117.2337,23.774,23.754,20.0]
[1673899420450,117.2337,23.774,23.755,17.0]
[1673899420862,117.2337,23.774,23.754,17.0]
[1673899421072,20.0,23.773,23.753,17.0]
[1673899421282,20.0,23.773,23.754,20.0]
[1673899421496,117.2337,23.774,23.755,17.0]
[1673899421709,114.0763,23.777,23.755,17.0]
[1673899421920,114.0763,23.777,23.755,29.01283996]
[1673899422114,114.0763,23.777,23.745,36.9456367]
[1673899422115,15.10345591,23.776,23.751,44.37116619]
[1673899422326,40.0,23.775,23.738,24.36306]
[1673899422554,40.0,23.775,23.741,6.05686696]
[1673899422748,40.0,23.775,23.743,20.0]
[1673899422953,40.0,23.775,23.744,6.16946283]
[1673899423288,40.0,23.775,23.743,41.46196354]
[1673899423497,19.23850763,23.774,23.742,4.85993]
[1673899423821,20.0,23.772,23.738,20.0]
[1673899424210,20.0,23.77,23.738,20.0]
[1673899424425,17.0,23.769,23.738,20.0]
[1673899424635,20.0,23.767,23.738,20.0]
[1673899424845,129.2593,23.766,23.738,20.0]
[1673899425158,117.92275591,23.766,23.738,20.0]
[1673899425368,109.2593,23.766,23.74,5.3440243]
[1673899425590,109.2593,23.766,23.742,20.0]
[1673899425816,109.2593,23.766,23.743,20.0]
[1673899426120,109.2593,23.766,23.744,6.33299478]
[1673899426336,109.2593,23.766,23.746,6.12527249]
[1673899426523,109.2593,23.766,23.747,17.0]
[1673899426730,109.2593,23.766,23.748,20.0]
[1673899426940,109.2593,23.766,23.749,17.0]
[1673899427472,109.2593,23.766,23.747,21.46196354]
[1673899427703,20.0,23.765,23.739,70.57749313]
[1673899427911,20.0,23.765,23.731,20.0]
[1673899427912,17.0,23.764,23.75,35.78430337]
[1673899428110,20.0,23.763,23.722,6.03356729]
[1673899428305,28.66345591,23.763,23.722,6.03356729]
[1673899428522,17.0,23.762,23.718,20.0]
[1673899428730,20.0,23.761,23.719,25.25802547]
[1673899428942,20.0,23.761,23.696,5.69410637]
[1673899428943,21.8955,23.76,23.696,5.69410637]
[1673899429147,24.8955,23.759,23.697,20.0]
[1673899429361,17.0,23.758,23.697,20.0]
[1673899429577,20.0,23.756,23.697,20.0]
[1673899429903,20.0,23.755,23.716,7.62068768]
[1673899430112,20.0,23.753,23.717,4.86505]
[1673899430430,20.0,23.752,23.717,31.51703335]
[1673899430640,20.0,23.752,23.719,20.0]
[1673899430952,138.17300763,23.751,23.721,4.55646111]
[1673899431148,138.17300763,23.751,23.722,20.0]
[1673899431353,17.01505172,23.75,23.723,37.0]
[1673899431791,17.01505172,23.75,23.725,20.0]
[1673899431993,118.9345,23.751,23.726,23.91550567]
[1673899432215,118.9345,23.751,23.727,20.0]
[1673899432427,19.23850763,23.755,23.728,22.34045791]
[1673899432639,114.0763,23.777,23.729,40.0]
[1673899432842,114.0763,23.777,23.73,17.0]
[1673899432843,39.23850763,23.762,23.73,17.0]
[1673899433057,20.0,23.761,23.73,17.0]
[1673899433370,10.57505172,23.76,23.732,20.0]
[1673899433571,130.99050763,23.76,23.733,37.0]
[1673899433781,20.0,23.759,23.733,37.0]
[1673899433998,28.45292591,23.759,23.733,17.0]
[1673899434312,36.23850763,23.758,23.723,20.0]
[1673899434637,36.23850763,23.758,23.715,25.5694942]
[1673899434638,12.79850763,23.757,23.715,25.5694942]
[1673899434853,20.0,23.755,23.718,21.46196354]
[1673899435042,20.0,23.755,23.72,26.32640354]
[1673899435370,20.0,23.753,23.72,26.32640354]
[1673899435583,20.0,23.753,23.722,20.0]
[1673899435899,20.0,23.752,23.723,26.32578354]
[1673899436108,20.0,23.752,23.726,4.52483621]
[1673899436425,19.78947,23.759,23.727,26.32496354]
[1673899436636,19.78947,23.759,23.729,6.79644722]
[1673899436845,19.78947,23.759,23.731,25.37339034]
[1673899437060,19.78947,23.759,23.731,4.86218]
[1673899437258,20.0,23.758,23.721,4.68968615]
[1673899437461,39.23850763,23.758,23.721,4.68968615]
[1673899437672,28.66345591,23.757,23.721,4.68968615]
[1673899438001,20.0,23.756,23.721,4.68968615]
[1673899438207,20.0,23.755,23.721,4.68968615]
[1673899438422,20.0,23.755,23.716,5.08951655]
[1673899438616,20.0,23.753,23.716,5.08951655]
[1673899438830,20.0,23.752,23.716,5.08951655]
[1673899439043,20.0,23.752,23.72,24.46321176]
[1673899439044,20.0,23.751,23.72,24.46321176]
[1673899439252,20.0,23.75,23.713,20.0]
[1673899439462,20.0,23.749,23.713,20.0]
[1673899439673,28.66345591,23.749,23.713,20.0]
[1673899439999,20.0,23.747,23.713,20.0]
[1673899440234,20.0,23.746,23.713,20.0]
[1673899440523,17.0,23.745,23.708,7.83319154]
[1673899440729,20.0,23.744,23.709,20.0]
[1673899440941,17.0,23.743,23.709,20.0]
[1673899441134,20.0,23.742,23.709,20.0]
[1673899441339,17.0,23.741,23.708,20.0]
[1673899441566,20.0,23.74,23.698,6.29904037]
[1673899441785,20.0,23.739,23.698,6.29904037]
[1673899441977,20.0,23.738,23.698,6.29904037]
[1673899442191,20.0,23.737,23.698,6.29904037]
[1673899442414,17.0,23.736,23.698,6.29904037]
[1673899442604,20.0,23.735,23.698,6.29904037]
[1673899442814,20.0,23.733,23.694,20.0]
[1673899443048,37.0,23.732,23.69,20.0]
[1673899443237,20.0,23.731,23.69,48.06968471]
[1673899443569,20.0,23.729,23.692,20.0]
[1673899443761,37.0,23.728,23.692,20.0]
[1673899443993,20.0,23.727,23.692,20.0]
[1673899444194,12.79850763,23.728,23.694,6.32879309]
[1673899444408,20.0,23.737,23.696,20.0]
[1673899444628,12.79850763,23.727,23.696,20.0]
[1673899444933,12.79850763,23.727,23.697,21.46196354]
[1673899445139,20.0,23.726,23.692,20.0]
[1673899445360,20.0,23.725,23.692,41.46196354]
[1673899445566,52.10345591,23.725,23.692,41.46196354]
[1673899445776,32.79850763,23.724,23.692,41.46196354]
[1673899445969,20.0,23.722,23.692,41.46196354]
[1673899446177,110.7649,23.721,23.692,20.0]
[1673899446388,110.7649,23.721,23.687,20.0]
[1673899446608,110.7649,23.721,23.69,6.69853181]
[1673899446818,110.7649,23.721,23.691,21.46196354]
[1673899447468,110.7649,23.721,23.692,20.0]
[1673899447787,20.0,23.72,23.693,20.0]
[1673899447979,20.0,23.72,23.693,41.46196354]
[1673899448416,37.0,23.72,23.693,41.46196354]
[1673899448735,20.0,23.719,23.687,20.0]
[1673899448942,20.0,23.717,23.683,21.46196354]
[1673899449135,20.0,23.716,23.683,21.46196354]
[1673899449563,35.02196354,23.716,23.683,21.46196354]
[1673899449873,20.0,23.715,23.683,21.46196354]
[1673899450087,20.0,23.714,23.683,21.46196354]
[1673899450404,20.0,23.713,23.683,21.46196354]
[1673899450917,20.0,23.711,23.683,21.46196354]
[1673899451129,20.0,23.711,23.675,20.0]
[1673899451339,56.23850763,23.71,23.679,21.46196354]
[1673899451555,52.10345591,23.71,23.679,21.46196354]
[1673899451760,39.23850763,23.709,23.679,21.46196354]
[1673899451970,17.0,23.708,23.667,20.0]
[1673899452197,20.0,23.706,23.671,20.0]
[1673899452514,52.10345591,23.705,23.672,21.46196354]
[1673899452714,52.10345591,23.705,23.673,20.0]
[1673899452917,39.23850763,23.704,23.673,20.0]
[1673899453122,20.0,23.703,23.675,20.0]
[1673899453557,20.0,23.702,23.675,20.0]
[1673899453755,20.0,23.702,23.676,21.46196354]
[1673899453965,35.02196354,23.702,23.673,20.0]
[1673899454178,19.23850763,23.701,23.673,41.46196354]
[1673899454407,19.23850763,23.701,23.673,20.0]
[1673899454607,20.0,23.702,23.674,20.0]
[1673899454820,20.0,23.702,23.675,17.0]
[1673899455025,35.10345591,23.702,23.676,20.0]
[1673899455460,35.10345591,23.702,23.673,20.0]
[1673899455658,20.0,23.701,23.673,20.0]
[1673899455872,37.0,23.7,23.668,22.04111007]
[1673899456090,37.0,23.7,23.668,2.04111007]
[1673899456091,131.4677,23.699,23.668,2.04111007]
[1673899456297,146.57115591,23.699,23.668,2.04111007]
[1673899456518,146.57115591,23.699,23.668,23.50307361]
[1673899456722,146.57115591,23.699,23.668,2.04111007]
[1673899456723,15.02196354,23.698,23.668,2.04111007]
[1673899456935,37.0,23.697,23.668,2.04111007]
[1673899457247,20.0,23.696,23.668,2.04111007]
[1673899457461,17.0,23.695,23.668,2.04111007]
[1673899457652,20.0,23.694,23.668,2.04111007]
[1673899457989,20.0,23.692,23.668,2.04111007]
[1673899458185,37.0,23.691,23.668,2.04111007]
[1673899458401,52.02196354,23.691,23.668,2.04111007]
[1673899458594,19.23850763,23.69,23.668,2.04111007]
[1673899458805,20.0,23.688,23.668,2.04111007]
[1673899459035,37.0,23.687,23.668,2.04111007]
[1673899459246,20.0,23.685,23.668,2.04111007]
[1673899459454,17.0,23.684,23.668,2.04111007]
[1673899459665,20.0,23.683,23.668,2.04111007]
[1673899459897,20.0,23.681,23.668,2.04111007]